fUST/lending_fUST_20240918
["ID","MTS","AMOUNT","RATE_DAILY","PERIOD"]
[338421035,1726627841238,-500.0,0.00019178,2]
[338421036,1726627841247,-500.0,0.00019178,2]
[338421037,1726627841256,-500.0,0.00019178,2]
[338421038,1726627841266,-1623.99,0.00019178,2]
[338421039,1726627841278,-1245.07,0.00019178,2]
[338421040,1726627841287,-500.0,0.00019178,2]
[338421041,1726627841297,-1797.18,0.00019178,2]
[338421042,1726627841314,-500.0,0.00019178,2]
[338421043,1726627841323,-500.0,0.00019178,2]
[338421044,1726627841332,-2449.68,0.00019178,2]
[338421045,1726627841341,-500.0,0.00019178,2]
[338421046,1726627841350,-541.53,0.00019178,2]
[338421047,1726627841360,-500.60118423,0.00019178,2]
[338421048,1726627841369,-500.0,0.00019178,2]
[338421049,1726627841379,-218.33523406,0.00019178,2]
[338421050,1726627841388,-500.0,0.00019178,2]
[338421051,1726627841397,-500.0,0.00019178,2]
[338421052,1726627841406,-500.0,0.00019178,2]
[338421053,1726627841415,-500.0,0.00019178,2]
[338421054,1726627841423,-500.0,0.00019178,2]
[338421055,1726627841432,-500.73333045,0.00019178,2]
[338421056,1726627841443,-500.0,0.00019178,2]
[338421057,1726627841455,-500.0,0.00019178,2]
[338421058,1726627841464,-500.0,0.00019178,2]
[338421059,1726627841474,-500.0,0.00019178,2]
[338421060,1726627841484,-283.21018989,0.00019178,2]
[338421061,1726627841494,-676.9,0.00019178,2]
[338421062,1726627841504,-835.91,0.00019178,2]
[338421063,1726627841513,-708.42,0.00019178,2]
[338421064,1726627841524,-501.16309341,0.00019178,2]
[338421065,1726627841534,-500.0,0.00019178,2]
[338421066,1726627841544,-500.0,0.00019178,2]
[338421067,1726627841554,-500.0,0.00019178,2]
[338421068,1726627841564,-557.33,0.00019178,2]
[338421069,1726627841574,-500.0,0.00019178,2]
[338421070,1726627841584,-267.80655226,0.00019178,2]
[338421071,1726627841594,-881.01,0.00019178,2]
[338421072,1726627841606,-500.0,0.00019178,2]
[338421073,1726627841616,-500.0,0.00019178,2]
[338421074,1726627841626,-1434.41,0.00019178,2]
[338421075,1726627841635,-500.0,0.00019178,2]
[338421076,1726627841645,-1184.72,0.00019178,2]
[338421077,1726627841655,-363.99161844,0.00019178,2]
[338421078,1726627841664,-200.0,0.00019178,2]
[338421079,1726627841674,-500.29797112,0.00019178,2]
[338421080,1726627841683,-500.0,0.00019178,2]
[338421081,1726627841694,-720.66,0.00019178,2]
[338421082,1726627841703,-3020.55,0.00019178,2]
[338421083,1726627841713,-520.69,0.00019178,2]
[338421084,1726627841722,-1055.75,0.00019178,2]
[338421085,1726627841732,-362.10430514,0.00019178,2]
[338421086,1726627841741,-500.0,0.00019178,2]
[338421087,1726627841750,-500.0,0.00019178,2]
[338421088,1726627841760,-500.0,0.00019178,2]
[338421089,1726627841769,-1387.72,0.00019178,2]
[338421090,1726627841779,-500.0,0.00019178,2]
[338421091,1726627841788,-500.0,0.00019178,2]
[338421092,1726627841797,-587.74479856,0.00019178,2]
[338421093,1726627841807,-500.0,0.00019178,2]
[338421094,1726627841816,-589.2542413,0.00019178,2]
[338421095,1726627841826,-509.54784208,0.00019178,2]
[338421096,1726627841835,-500.0,0.00019178,2]
[338421097,1726627841845,-605.97,0.00019178,2]
[338421098,1726627841855,-2247.0,0.00019178,2]
[338421099,1726627841864,-683.75,0.00019178,2]
[338421100,1726627841875,-622.0,0.00019178,2]
[338421101,1726627841884,-500.0,0.00019178,2]
[338421102,1726627841894,-508.173288,0.00019178,2]
[338421103,1726627841905,-500.0,0.00019178,2]
[338421104,1726627841916,-500.0,0.00019178,2]
[338421105,1726627841926,-2620.05,0.00019178,2]
[338421106,1726627841936,-639.35,0.00019178,2]
[338421107,1726627841946,-500.0,0.00019178,2]
[338421108,1726627841955,-1257.52,0.00019178,2]
[338421109,1726627841966,-500.0,0.00019178,2]
[338421110,1726627841977,-500.0,0.00019178,2]
[338421111,1726627841987,-991.7,0.00019178,2]
[338421112,1726627841997,-500.0,0.00019178,2]
[338421113,1726627842008,-1480.04,0.00019178,2]
[338421114,1726627842019,-500.0,0.00019178,2]
[338421115,1726627842030,-500.0,0.00019178,2]
[338421116,1726627842041,-500.0,0.00019178,2]
[338421117,1726627842052,-500.0,0.00019178,2]
[338421118,1726627842062,-500.0,0.00019178,2]
[338421119,1726627842072,-1783.01,0.00019178,2]
[338421120,1726627842083,-500.74867158,0.00019178,2]
[338421121,1726627842092,-500.0,0.00019178,2]
[338421122,1726627842103,-500.0,0.00019178,2]
[338421123,1726627842113,-2871.25,0.00019178,2]
[338421124,1726627842124,-500.0,0.00019178,2]
[338421125,1726627842134,-1120.36,0.00019178,2]
[338421126,1726627842145,-233.194947,0.00019178,2]
[338421127,1726627842156,-565.42,0.00019178,2]
[338421128,1726627842167,-500.0,0.00019178,2]
[338421129,1726627842179,-500.0,0.00019178,2]
[338421130,1726627842189,-500.0,0.00019178,2]
[338421131,1726627842200,-510.35,0.00019178,2]
[338421132,1726627842211,-500.0,0.00019178,2]
[338421133,1726627842221,-500.0,0.00019178,2]
[338421134,1726627842231,-500.0,0.00019178,2]
[338421135,1726627842242,-500.0,0.00019178,2]
[338421136,1726627842253,-500.0,0.00019178,2]
[338421137,1726627842390,-1160.71,0.00019178,2]
[338421138,1726627842403,-500.0,0.00019178,2]
[338421139,1726627842414,-500.0,0.00019178,2]
[338421140,1726627842426,-309.0,0.00019178,2]
[338421141,1726627842437,-500.0,0.00019178,2]
[338421142,1726627842451,-530.2,0.00019178,2]
[338421143,1726627842461,-500.0,0.00019178,2]
[338421144,1726627842472,-500.0,0.00019178,2]
[338421145,1726627842481,-500.0,0.00019178,2]
[338421146,1726627842492,-500.0,0.00019178,2]
[338421147,1726627842503,-1236.93,0.00019178,2]
[338421148,1726627842516,-1570.43,0.00019178,2]
[338421149,1726627842530,-500.0,0.00019178,2]
[338421150,1726627842542,-1488.13,0.00019178,2]
[338421151,1726627842553,-435.42923858,0.00019178,2]
[338421152,1726627842563,-963.18,0.00019178,2]
[338421153,1726627842574,-151.0,0.00019178,2]
[338421154,1726627842585,-803.45,0.00019178,2]
[338421155,1726627842595,-792.22,0.00019178,2]
[338421156,1726627842605,-1683.57,0.00019178,2]
[338421157,1726627842616,-500.0,0.00019178,2]
[338421158,1726627842627,-500.0,0.00019178,2]
[338421159,1726627842638,-500.0,0.00019178,2]
[338421160,1726627842648,-448.26692481,0.00019178,2]
[338421161,1726627842659,-531.5935588,0.00019178,2]
[338421162,1726627842671,-500.0,0.00019178,2]
[338421163,1726627842680,-500.0,0.00019178,2]
[338421164,1726627842690,-500.0,0.00019178,2]
[338421165,1726627842701,-500.0,0.00019178,2]
[338421166,1726627842712,-500.0,0.00019178,2]
[338421167,1726627842722,-2673.28,0.00019178,2]
[338421168,1726627842732,-500.0,0.00019178,2]
[338421169,1726627842742,-524.77583448,0.00019178,2]
[338421170,1726627842751,-701.6,0.00019178,2]
[338421171,1726627842761,-500.0,0.00019178,2]
[338421172,1726627842770,-500.0,0.00019178,2]
[338421173,1726627842779,-500.0,0.00019178,2]
[338421174,1726627842788,-500.0,0.00019178,2]
[338421175,1726627842798,-500.0,0.00019178,2]
[338421176,1726627842808,-231.62673947,0.00019178,2]
[338421177,1726627842820,-500.0,0.00019178,2]
[338421178,1726627842831,-670.64,0.00019178,2]
[338421179,1726627842841,-501.44365997,0.00019178,2]
[338421180,1726627842850,-500.0,0.00019178,2]
[338421181,1726627842859,-2189.41,0.00019178,2]
[338421182,1726627842868,-500.0,0.00019178,2]
[338421183,1726627842878,-500.0,0.00019178,2]
[338421185,1726627842887,-500.0,0.00019178,2]
[338421188,1726627842896,-500.0,0.00019178,2]
[338421189,1726627842905,-500.0,0.00019178,2]
[338421190,1726627842914,-500.0,0.00019178,2]
[338421191,1726627842924,-678.14,0.00019178,2]
[338421192,1726627842933,-1140.97,0.00019178,2]
[338421193,1726627842942,-500.0,0.00019178,2]
[338421194,1726627842951,-500.0,0.00019178,2]
[338421195,1726627842960,-2195.77,0.00019178,2]
[338421196,1726627842969,-500.0,0.00019178,2]
[338421197,1726627842978,-500.18829658,0.00019178,2]
[338421198,1726627842988,-1056.58,0.00019178,2]
[338421199,1726627842997,-500.0,0.00019178,2]
[338421200,1726627843007,-500.0,0.00019178,2]
[338421201,1726627843016,-500.0,0.00019178,2]
[338421202,1726627843026,-500.0,0.00019178,2]
[338421204,1726627843036,-729.69,0.00019178,2]
[338421205,1726627843045,-1145.39,0.00019178,2]
[338421206,1726627843055,-500.0,0.00019178,2]
[338421207,1726627843064,-500.0,0.00019178,2]
[338421208,1726627843073,-984.62,0.00019178,2]
[338421209,1726627843083,-500.0,0.00019178,2]
[338421210,1726627843092,-500.0,0.00019178,2]
[338421212,1726627843101,-979.8,0.00019178,2]
[338421213,1726627843110,-882.59,0.00019178,2]
[338421214,1726627843120,-815.9,0.00019178,2]
[338421215,1726627843129,-500.0,0.00019178,2]
[338421216,1726627843139,-500.0,0.00019178,2]
[338421217,1726627843149,-666.81,0.00019178,2]
[338421218,1726627843158,-500.0,0.00019178,2]
[338421219,1726627843167,-500.0,0.00019178,2]
[338421220,1726627843177,-536.7,0.00019178,2]
[338421221,1726627843186,-500.0,0.00019178,2]
[338421222,1726627843196,-500.0,0.00019178,2]
[338421223,1726627843206,-500.0,0.00019178,2]
[338421224,1726627843216,-501.66589854,0.00019178,2]
[338421225,1726627843228,-513.79137478,0.00019178,2]
[338421226,1726627843237,-500.0,0.00019178,2]
[338421227,1726627843248,-500.0,0.00019178,2]
[338421228,1726627843260,-500.0,0.00019178,2]
[338421229,1726627843272,-527.92,0.00019178,2]
[338421230,1726627843281,-4068.99,0.00019178,2]
[338421231,1726627843290,-1115.21,0.00019178,2]
[338421232,1726627843300,-824.54,0.00019178,2]
[338421233,1726627843311,-500.0,0.00019178,2]
[338421234,1726627843320,-500.0,0.00019178,2]
[338421235,1726627843330,-500.0,0.00019178,2]
[338421236,1726627843339,-500.0,0.00019178,2]
[338421237,1726627843349,-1671.18,0.00019178,2]
[338421238,1726627843358,-500.0,0.00019178,2]
[338421239,1726627843367,-500.0,0.00019178,2]
[338421240,1726627843376,-868.56,0.00019178,2]
[338421241,1726627843385,-500.0,0.00019178,2]
[338421242,1726627843394,-519.95334485,0.00019178,2]
[338421243,1726627843403,-500.0,0.00019178,2]
[338421244,1726627843413,-1044.42,0.00019178,2]
[338421246,1726627843422,-720.75,0.00019178,2]
[338421247,1726627843431,-1910.65,0.00019178,2]
[338421248,1726627843440,-500.0,0.00019178,2]
[338421249,1726627843453,-500.0,0.00019178,2]
[338421250,1726627843462,-2494.91,0.00019178,2]
[338421251,1726627843471,-262.88074097,0.00019178,2]
[338421252,1726627843481,-500.0,0.00019178,2]
[338421253,1726627843490,-1423.03,0.00019178,2]
[338421254,1726627843499,-500.0,0.00019178,2]
[338421255,1726627843508,-1120.0,0.00019178,2]
[338421256,1726627843519,-654.92,0.00019178,2]
[338421257,1726627843529,-500.0,0.00019178,2]
[338421258,1726627843539,-1015.84,0.00019178,2]
[338421259,1726627843548,-1389.69,0.00019178,2]
[338421260,1726627843557,-500.0,0.00019178,2]
[338421261,1726627843566,-211.377789,0.00019178,2]
[338421262,1726627843575,-211.377789,0.00019178,2]
[338421263,1726627843584,-702.82,0.00019178,2]
[338421264,1726627843593,-382.56079052,0.00019178,2]
[338421265,1726627843602,-500.0,0.00019178,2]
[338421266,1726627843612,-500.0,0.00019178,2]
[338421267,1726627843622,-1572.18,0.00019178,2]
[338421268,1726627843631,-500.0,0.00019178,2]
[338421269,1726627843641,-1906.23,0.00019178,2]
[338421270,1726627843650,-582.54,0.00019178,2]
[338421271,1726627843659,-1279.29,0.00019178,2]
[338421272,1726627843668,-1806.57,0.00019178,2]
[338421273,1726627843677,-2019.7,0.00019178,2]
[338421274,1726627843687,-500.0,0.00019178,2]
[338421275,1726627843696,-1085.77,0.00019178,2]
[338421276,1726627843705,-562.52,0.00019178,2]
[338421277,1726627843715,-500.0,0.00019178,2]
[338421278,1726627843724,-637.46,0.00019178,2]
[338421279,1726627843734,-526.12118235,0.00019178,2]
[338421280,1726627843743,-500.0,0.00019178,2]
[338421281,1726627843753,-2353.69,0.00019178,2]
[338421282,1726627843762,-903.98,0.00019178,2]
[338421283,1726627843772,-500.0,0.00019178,2]
[338421285,1726627843781,-500.0,0.00019178,2]
[338421287,1726627843791,-500.0,0.00019178,2]
[338421289,1726627843800,-502.83910641,0.00019178,2]
[338421290,1726627843809,-500.0,0.00019178,2]
[338421291,1726627843820,-500.0,0.00019178,2]
[338421292,1726627843829,-574.5,0.00019178,2]
[338421293,1726627843838,-500.0,0.00019178,2]
[338421294,1726627843847,-1437.66,0.00019178,2]
[338421295,1726627843857,-500.0,0.00019178,2]
[338421296,1726627843869,-1045.01,0.00019178,2]
[338421297,1726627843879,-1249.79,0.00019178,2]
[338421298,1726627843890,-500.0,0.00019178,2]
[338421299,1726627843900,-500.0,0.00019178,2]
[338421300,1726627843911,-500.0,0.00019178,2]
[338421301,1726627843922,-434.84051108,0.00019178,2]
[338421302,1726627843934,-500.0,0.00019178,2]
[338421303,1726627843943,-500.0,0.00019178,2]
[338421304,1726627843953,-500.0,0.00019178,2]
[338421305,1726627843963,-500.0,0.00019178,2]
[338421306,1726627843972,-500.0,0.00019178,2]
[338421307,1726627843983,-500.0,0.00019178,2]
[338421308,1726627843993,-1433.93,0.00019178,2]
[338421309,1726627844005,-500.0,0.00019178,2]
[338421310,1726627844015,-151.0,0.00019178,2]
[338421311,1726627844026,-1969.18,0.00019178,2]
[338421312,1726627844037,-563.83,0.00019178,2]
[338421313,1726627844049,-2384.93,0.00019178,2]
[338421314,1726627844059,-500.0,0.00019178,2]
[338421315,1726627844070,-2206.03,0.00019178,2]
[338421316,1726627844081,-2206.03,0.00019178,2]
[338421317,1726627844090,-2206.03,0.00019178,2]
[338421318,1726627844101,-500.0,0.00019178,2]
[338421319,1726627844111,-500.0,0.00019178,2]
[338421320,1726627844119,-500.0,0.00019178,2]
[338421321,1726627844128,-1192.84,0.00019178,2]
[338421322,1726627844138,-1054.18,0.00019178,2]
[338421324,1726627844148,-864.83,0.00019178,2]
[338421326,1726627844159,-1414.83,0.00019178,2]
[338421328,1726627844170,-500.0,0.00019178,2]
[338421329,1726627844180,-528.13690312,0.00019178,2]
[338421331,1726627844191,-500.0,0.00019178,2]
[338421333,1726627844202,-1676.63,0.00019178,2]
[338421335,1726627844211,-500.0,0.00019178,2]
[338421336,1726627844222,-500.0,0.00019178,2]
[338421337,1726627844231,-500.0,0.00019178,2]
[338421338,1726627844240,-976.23,0.00019178,2]
[338421339,1726627844249,-500.0,0.00019178,2]
[338421340,1726627844258,-500.0,0.00019178,2]
[338421341,1726627844391,-500.0,0.00019178,2]
[338421342,1726627844402,-392.2508556,0.00019178,2]
[338421343,1726627844412,-500.0,0.00019178,2]
[338421344,1726627844423,-3097.92,0.00019178,2]
[338421345,1726627844433,-1075.47,0.00019178,2]
[338421346,1726627844443,-500.0,0.00019178,2]
[338421347,1726627844457,-500.0,0.00019178,2]
[338421348,1726627844467,-500.0,0.00019178,2]
[338421349,1726627844477,-500.0,0.00019178,2]
[338421350,1726627844486,-500.0,0.00019178,2]
[338421351,1726627844497,-500.0,0.00019178,2]
[338421352,1726627844508,-1002.29,0.00019178,2]
[338421353,1726627844518,-151.0,0.00019178,2]
[338421354,1726627844536,-500.0,0.00019178,2]
[338421355,1726627844548,-500.0,0.00019178,2]
[338421356,1726627844558,-500.0,0.00019178,2]
[338421357,1726627844569,-500.0,0.00019178,2]
[338421358,1726627844579,-500.50053108,0.00019178,2]
[338421359,1726627844591,-500.0,0.00019178,2]
[338421360,1726627844600,-551.49,0.00019178,2]
[338421361,1726627844610,-210.20224572,0.00019178,2]
[338421362,1726627844622,-303.39703546,0.00019178,2]
[338421363,1726627844635,-619.96,0.00019178,2]
[338421364,1726627844646,-2276.9,0.00019178,2]
[338421365,1726627844656,-500.0,0.00019178,2]
[338421366,1726627844668,-500.0,0.00019178,2]
[338421367,1726627844677,-2812.63,0.00019178,2]
[338421368,1726627844687,-1761.87,0.00019178,2]
[338421369,1726627844696,-500.0,0.00019178,2]
[338421370,1726627844705,-3114.96,0.00019178,2]
[338421371,1726627844715,-500.0,0.00019178,2]
[338421372,1726627844724,-578.79525332,0.00019178,2]
[338421373,1726627844734,-500.0,0.00019178,2]
[338421374,1726627844745,-1012.09,0.00019178,2]
[338421375,1726627844756,-355.53956789,0.00019178,2]
[338421376,1726627844765,-500.0,0.00019178,2]
[338421377,1726627844775,-958.07,0.00019178,2]
[338421378,1726627844785,-500.0,0.00019178,2]
[338421379,1726627844794,-2145.47,0.00019178,2]
[338421380,1726627844803,-500.0,0.00019178,2]
[338421381,1726627844812,-2225.84,0.00019178,2]
[338421382,1726627844822,-500.0,0.00019178,2]
[338421383,1726627844843,-500.0,0.00019178,2]
[338421384,1726627844855,-1128.81,0.00019178,2]
[338421385,1726627844866,-501.23356417,0.00019178,2]
[338421386,1726627844878,-151.0,0.00019178,2]
[338421387,1726627844889,-151.0,0.00019178,2]
[338421388,1726627844899,-500.0,0.00019178,2]
[338421389,1726627844909,-500.0,0.00019178,2]
[338421390,1726627844919,-1732.79,0.00019178,2]
[338421391,1726627844931,-568.94,0.00019178,2]
[338421392,1726627844941,-1475.75,0.00019178,2]
[338421393,1726627844951,-1778.51,0.00019178,2]
[338421394,1726627844961,-500.0,0.00019178,2]
[338421395,1726627844971,-500.0,0.00019178,2]
[338421396,1726627844980,-500.0,0.00019178,2]
[338421397,1726627844991,-500.0,0.00019178,2]
[338421398,1726627845002,-154.946537,0.00019178,2]
[338421399,1726627845012,-500.0,0.00019178,2]
[338421400,1726627845025,-500.0,0.00019178,2]
[338421401,1726627845035,-500.0,0.00019178,2]
[338421402,1726627845046,-500.0,0.00019178,2]
[338421403,1726627845056,-500.0,0.00019178,2]
[338421404,1726627845066,-500.0,0.00019178,2]
[338421405,1726627845076,-151.0,0.00019178,2]
[338421406,1726627845088,-581.77,0.00019178,2]
[338421407,1726627845099,-500.0,0.00019178,2]
[338421408,1726627845111,-500.0,0.00019178,2]
[338421409,1726627845124,-500.0,0.00019178,2]
[338421410,1726627845135,-151.0,0.00019178,2]
[338421411,1726627845146,-500.0,0.00019178,2]
[338421412,1726627845159,-809.44,0.00019178,2]
[338421413,1726627845169,-548.95,0.00019178,2]
[338421414,1726627845180,-500.0,0.00019178,2]
[338421415,1726627845191,-859.11,0.00019178,2]
[338421416,1726627845202,-151.0,0.00019178,2]
[338421417,1726627845214,-500.0,0.00019178,2]
[338421418,1726627845224,-500.0,0.00019178,2]
[338421419,1726627845235,-220.950615,0.00019178,2]
[338421420,1726627845247,-500.0,0.00019178,2]
[338421421,1726627845259,-500.0,0.00019178,2]
[338421422,1726627845269,-500.0,0.00019178,2]
[338421423,1726627845279,-500.0,0.00019178,2]
[338421424,1726627845288,-500.0,0.00019178,2]
[338421425,1726627845298,-500.0,0.00019178,2]
[338421426,1726627845307,-500.0,0.00019178,2]
[338421427,1726627845317,-220.950615,0.00019178,2]
[338421428,1726627845346,-500.0974355,0.00019178,2]
[338421429,1726627845367,-605.75,0.00019178,2]
[338421430,1726627845391,-508.28852983,0.00019178,2]
[338421431,1726627845416,-900.98,0.00019178,2]
[338421432,1726627845438,-500.0,0.00019178,2]
[338421433,1726627845463,-500.0,0.00019178,2]
[338421434,1726627845482,-230.29370128,0.00019178,2]
[338421435,1726627845499,-506.2982813,0.00019178,2]
[338421436,1726627845521,-512.02735069,0.00019178,2]
[338421437,1726627845541,-500.0,0.00019178,2]
[338421438,1726627845558,-500.0,0.00019178,2]
[338421439,1726627845574,-155.996601,0.00019178,2]
[338421440,1726627845594,-500.0,0.00019178,2]
[338421441,1726627845616,-700.96,0.00019178,2]
[338421442,1726627845633,-180.090613,0.00019178,2]
[338421443,1726627845654,-180.090613,0.00019178,2]
[338421444,1726627845676,-500.0,0.00019178,2]
[338421445,1726627845697,-158.89598799,0.00019178,2]
[338421446,1726627845716,-500.0,0.00019178,2]
[338421447,1726627845735,-500.0,0.00019178,2]
[338421448,1726627845752,-500.0,0.00019178,2]
[338421449,1726627845771,-180.090613,0.00019178,2]
[338421450,1726627845791,-180.090613,0.00019178,2]
[338421451,1726627845808,-531.88,0.00019178,2]
[338421452,1726627845825,-500.0,0.00019178,2]
[338421453,1726627845840,-500.0,0.00019178,2]
[338421454,1726627845856,-500.0,0.00019178,2]
[338421455,1726627845871,-500.0,0.00019178,2]
[338421456,1726627845887,-1003.19,0.00019178,2]
[338421457,1726627845902,-500.0,0.00019178,2]
[338421458,1726627845917,-500.0,0.00019178,2]
[338421459,1726627845931,-500.0,0.00019178,2]
[338421460,1726627845950,-500.0,0.00019178,2]
[338421461,1726627845968,-500.0,0.00019178,2]
[338421462,1726627845986,-500.0,0.00019178,2]
[338421463,1726627846004,-500.0,0.00019178,2]
[338421464,1726627846023,-919.55,0.00019178,2]
[338421465,1726627846040,-510.2681691,0.00019178,2]
[338421468,1726627846057,-708.59,0.00019178,2]
[338421471,1726627846074,-539.04281045,0.00019178,2]
[338421472,1726627846092,-500.0,0.00019178,2]
[338421473,1726627846108,-1363.09,0.00019178,2]
[338421474,1726627846124,-1820.27,0.00019178,2]
[338421475,1726627846139,-500.0,0.00019178,2]
[338421476,1726627846154,-782.15,0.00019178,2]
[338421477,1726627846172,-500.0,0.00019178,2]
[338421478,1726627846187,-500.0,0.00019178,2]
[338421479,1726627846203,-500.0,0.00019178,2]
[338421480,1726627846220,-500.0,0.00019178,2]
[338421482,1726627846236,-500.0,0.00019178,2]
[338421483,1726627846252,-1318.25,0.00019178,2]
[338421484,1726627846268,-777.79,0.00019178,2]
[338421485,1726627846286,-500.0,0.00019178,2]
[338421486,1726627846301,-500.0,0.00019178,2]
[338421487,1726627846317,-500.0,0.00019178,2]
[338421488,1726627846334,-500.0,0.00019178,2]
[338421489,1726627846350,-4321.59,0.00019178,2]
[338421490,1726627846367,-500.0,0.00019178,2]
[338421491,1726627846383,-1377.88,0.00019178,2]
[338421492,1726627846400,-1170.35,0.00019178,2]
[338421493,1726627846416,-500.0,0.00019178,2]
[338421494,1726627846431,-500.0,0.00019178,2]
[338421495,1726627846446,-248.80975726,0.00019178,2]
[338421496,1726627846463,-500.0,0.00019178,2]
[338421497,1726627846480,-12411.55,0.00019178,2]
[338421498,1726627846496,-500.0,0.00019178,2]
[338421499,1726627846513,-500.0,0.00019178,2]
[338421500,1726627846529,-518.6,0.00019178,2]
[338421501,1726627846544,-500.0,0.00019178,2]
[338421502,1726627846559,-500.0,0.00019178,2]
[338421503,1726627846575,-500.0,0.00019178,2]
[338421504,1726627846590,-500.0,0.00019178,2]
[338421507,1726627846608,-625.47,0.00019178,2]
[338421510,1726627846625,-500.0,0.00019178,2]
[338421513,1726627846642,-500.0,0.00019178,2]
[338421515,1726627846660,-500.0,0.00019178,2]
[338421516,1726627846676,-500.0,0.00019178,2]
[338421517,1726627846691,-500.0,0.00019178,2]
[338421518,1726627846704,-1320.37,0.00019178,2]
[338421519,1726627846715,-500.0,0.00019178,2]
[338421520,1726627846726,-500.0,0.00019178,2]
[338421521,1726627846736,-500.0,0.00019178,2]
[338421522,1726627846747,-500.0,0.00019178,2]
[338421523,1726627846767,-3721.54,0.00019178,2]
[338421524,1726627846780,-500.0,0.00019178,2]
[338421525,1726627846790,-1020.47,0.00019178,2]
[338421526,1726627846800,-500.0,0.00019178,2]
[338421527,1726627847125,-1499.52,0.00019178,2]
[338421528,1726627847141,-500.0,0.00019178,2]
[338421529,1726627847161,-637.86,0.00019178,2]
[338421530,1726627847170,-500.0,0.00019178,2]
[338421531,1726627847179,-1088.76,0.00019178,2]
[338421532,1726627847189,-500.0,0.00019178,2]
[338421533,1726627847198,-500.0,0.00019178,2]
[338421534,1726627847206,-870.83,0.00019178,2]
[338421535,1726627847215,-567.2668096,0.00019178,2]
[338421536,1726627847224,-2731.66,0.00019178,2]
[338421537,1726627847233,-500.0,0.00019178,2]
[338421538,1726627847242,-654.48,0.00019178,2]
[338421539,1726627847252,-500.0,0.00019178,2]
[338421540,1726627847261,-500.0,0.00019178,2]
[338421541,1726627847270,-1304.82,0.00019178,2]
[338421542,1726627847280,-500.0,0.00019178,2]
[338421543,1726627847289,-20984.16,0.00019178,2]
[338421544,1726627847298,-500.0,0.00019178,2]
[338421545,1726627847307,-500.0,0.00019178,2]
[338421546,1726627847316,-500.0,0.00019178,2]
[338421547,1726627847326,-2467.62,0.00019178,2]
[338421548,1726627847335,-500.0,0.00019178,2]
[338421549,1726627847344,-500.0,0.00019178,2]
[338421550,1726627847353,-698.21,0.00019178,2]
[338421551,1726627847362,-885.2,0.00019178,2]
[338421552,1726627847371,-10161.24,0.00019178,2]
[338421553,1726627847380,-516.27,0.00019178,2]
[338421554,1726627847389,-500.0,0.00019178,2]
[338421555,1726627847398,-516.27,0.00019178,2]
[338421556,1726627847407,-516.27,0.00019178,2]
[338421557,1726627847416,-992.39,0.00019178,2]
[338421558,1726627847425,-516.27,0.00019178,2]
[338421559,1726627847434,-500.0,0.00019178,2]
[338421560,1726627847444,-516.27,0.00019178,2]
[338421561,1726627847456,-516.27,0.00019178,2]